Cogmind - Beta 15 @@@ ROGUE MODE // 2025.08.21 @ 18:01:11 Player: puppuppit Result: Destroyed by S-27 Virus with Autogun Performance ------------- Evolutions (6) 3000 Regions Visited (24) 4800 Robots Destroyed (466) 2330 Value Destroyed (13558) 13558 Prototype IDs (39) 780 Alien Tech Used (0) 0 Bonus (10948) 10948 TOTAL SCORE: 35416 Bonus ------- Triggered High Security 1000 High Alert Combat Kills 5263 Follower Combat Kills 3607 Network Hubs Disabled 400 Registered with UFD 300 Met Optimus in HQ 500 Met Imprinter 300 Built Enhanced Grunts 300 A7 Reached Mainframe 300 Met R17 at Cetus 500 Friendly Fire -1522 Cogmind --------- Core Integrity 0/1150 Matter 300/300 Energy 58/100 System Corruption 19% Temperature Cool (0) Movement Hovering (70) Location -4/Factory Parts ------- > --- POWER (2) -------- (None) > --- PROPULSION (6) --- Improved Gyrokinetic Inverter > --- UTILITY (7) ------ Improved Signal Interpreter Improved System Shield > --- WEAPON (4) ------- (None) > --- INVENTORY (5) ---- Antigrav Array Improved Matter Compressor (12) Weapon Mount Fusion Bomb Launcher Peak State ------------ > --- POWER ------------ Micro Fission Core Particle Reactor > --- PROPULSION ------- Antigrav System Antigrav System Combat Gravmag System Combat Gravmag System Combat Gravmag System Improved Gyrokinetic Inverter > --- UTILITY ---------- Improved Heat Sink Large Storage Unit Weapon Mount Improved Hacking Suite Improved Hacking Suite Advanced Hacking Suite Improved System Shield > --- WEAPON ----------- Enhanced Coil Gun Enhanced Coil Gun Advanced KE Penetrator Enhanced Gauss Cannon > --- INVENTORY -------- Gyrokinetic Inverter Combat Gravmag System Improved Gyrokinetic Inverter Improved Gyrokinetic Inverter Improved Gyrokinetic Inverter Improved Heat Sink Matter Compressor Improved Targeting Computer Weapon Mount Advanced Recoil Stabilizer Layered Medium Armor Plating Enhanced Gauss Cannon Heavy Missile Launcher CR-A16's Pointy Stick [Rating: 116] Favorites ----------- Power Cooled Ion Engine Engine Cooled Ion Engine Power Core Light Fission Core Reactor Particle Reactor Propulsion Light Treads Treads Light Treads Hover Unit Gravmag Array Flight Unit Nuclear Pulse Array Utility Large Storage Unit Device Improved Cooling System Storage Large Storage Unit Processor Targeting Computer Hackware Advanced Hacking Suite Protection Improved Weapon Shielding Weapon Improved Assault Rifle Energy Gun Improved Arc Projector Energy Cannon HERF Cannon Ballistic Gun Improved Assault Rifle Ballistic Cannon Magnetic Acceleration Cannon Launcher Long-range Missile Launcher Special Weapon Plasma Cutter Piercing Weapon CR-A16's Pointy Stick Build | -11 -10 -10 -9 -9 -9 -9 -6 -6 -6 -6 -6 -6 -6 -5 -5 -5 -5 -5 -5 -5 -5 -4 -4 -4 ------- Run | Yrd Mat Min Mat Sto Rec Scr Fac Was Fac Low Low Zio Dee Pro Fac Was Fac Ext Cet Arc Hub Fac Was Fac Slots Evolved 12 | . . . 2 . . . 6 . . . . . . . 2 . . . . . . 2 . . Power 1 | . . . . . . . . . . . . . . . . . . . . . . 1 . . Propulsion 4 | . . . . . . . 4 . . . . . . . . . . . . . . . . . Utility 5 | . . . . . . . 2 . . . . . . . 2 . . . . . . 1 . . Weapon 2 | . . . 2 . . . . . . . . . . . . . . . . . . . . . Parts Attached 250 | 7 9 6 24 23 2 4 11 7 26 2 . 8 11 1 31 2 8 17 6 10 5 13 1 16 Power 30 | 1 3 2 3 3 . . 1 . 5 . . 1 . 1 2 1 1 1 1 1 . 2 . 1 Engine 16 | 1 3 . 3 3 . . 1 . 2 . . 1 . . 2 . . . . . . . . . Core 10 | . . 2 . . . . . . 3 . . . . 1 . 1 1 1 . . . 1 . . Reactor 4 | . . . . . . . . . . . . . . . . . . . 1 1 . 1 . 1 Propulsion 70 | 2 1 2 7 12 . . 5 . 8 . . 1 5 . 7 . 2 2 . 1 4 6 . 5 Treads 26 | 2 1 2 7 12 . . 2 . . . . . . . . . . . . . . . . . Leg . | . . . . . . . . . . . . . . . . . . . . . . . . . Wheel . | . . . . . . . . . . . . . . . . . . . . . . . . . Hover 42 | . . . . . . . 3 . 8 . . 1 5 . 7 . 2 2 . 1 4 6 . 3 Flight 2 | . . . . . . . . . . . . . . . . . . . . . . . . 2 Utility 69 | 2 2 . 4 1 1 3 3 3 6 2 . 3 6 . 14 . 2 3 1 5 . 2 1 5 Device 28 | 1 . . 2 . . 1 1 3 1 . . 2 1 . 9 . . 1 . 2 . 1 1 2 Storage 5 | 1 1 . 1 . . 1 . . . . . . 1 . . . . . . . . . . . Processor 10 | . . . 1 1 . 1 1 . . 1 . . . . . . 1 1 . . . . . 3 Hackware 16 | . . . . . 1 . 1 . 4 . . . . . 5 . 1 1 . 3 . . . . Protection 10 | . 1 . . . . . . . 1 1 . 1 4 . . . . . 1 . . 1 . . Artifact . | . . . . . . . . . . . . . . . . . . . . . . . . . Weapon 81 | 2 3 2 10 7 1 1 2 4 7 . . 3 . . 8 1 3 11 4 3 1 3 . 5 Energy Gun 6 | 1 . . . . . . . . . . . 1 . . . . . . 1 . . . . 3 Energy Cannon 3 | . . . . . . . . . . . . . . . . . 1 . . . . . . 2 Ballistic Gun 36 | 1 1 1 9 5 1 1 2 . . . . . . . 4 . . 6 . 3 . 2 . . Ballistic Cannon 29 | . 2 1 . . . . . 4 6 . . 1 . . 4 1 2 5 3 . . . . . Launcher 4 | . . . 1 1 . . . . 1 . . . . . . . . . . . . 1 . . Special Weapon 2 | . . . . 1 . . . . . . . . . . . . . . . . 1 . . . Impact Weapon . | . . . . . . . . . . . . . . . . . . . . . . . . . Slashing Weapon . | . . . . . . . . . . . . . . . . . . . . . . . . . Piercing Weapon 1 | . . . . . . . . . . . . 1 . . . . . . . . . . . . Special Melee Weapon . | . . . . . . . . . . . . . . . . . . . . . . . . . Unidentified Prototypes 18 | . . . 1 1 . . . 1 2 . . 2 6 . 1 . . . 2 1 . 1 . . Corrupted Parts 3 | . . . . . . . . . . . . . . . . . . . 1 . . . . 2 System Corruption 10 | . . . . . . . . . . . . . . . . . . . 3 . . . . 7 Parts Lost 81 | . 2 2 1 . . . 1 . 6 1 1 2 3 . 15 . 6 3 2 1 7 10 6 12 Power 10 | . 1 1 . . . . . . 2 . . . . . 2 . . . . . 1 1 1 1 Propulsion 23 | . . . . . . . . . 3 . 1 . 2 . 6 . . . . . 4 3 1 3 Utility 16 | . . . 1 . . . . . . 1 . 2 . . 2 . . 1 . . 1 1 3 4 Weapon 32 | . 1 1 . . . . 1 . 1 . . . 1 . 5 . 6 2 2 1 1 5 1 4 Highest Loss Streak 9 | . 1 1 1 . . . 1 . 1 1 1 1 2 . 5 . 3 4 1 1 6 9 6 9 To Critical Strikes . | . . . . . . . . . . . . . . . . . . . . . . . . . Average Backups 13 | . 12 12 13 14 14 11 14 14 13 11 11 14 14 14 13 14 14 14 14 14 14 10 11 4 Power . | . . . . . 1 . 1 1 . 1 1 1 . 1 . . . 1 1 1 1 . . . Propulsion 3 | . 6 5 3 2 3 2 . 1 2 5 4 3 3 3 2 3 4 4 4 4 4 1 3 . Utility 3 | . 3 2 4 3 3 2 3 3 5 1 1 3 5 7 5 5 5 4 4 4 5 4 5 2 Weapon 5 | . 2 4 5 6 7 6 9 9 6 4 4 6 4 3 3 5 3 4 4 4 3 3 2 1 Tool/Special . | . . . . . . . . . . . . . . . . . . . . . . . . . Unused Backups 66 | . 3 3 5 4 . . 2 4 11 . . 4 . . 6 . 2 5 2 5 . . 4 6 Power 9 | . . . . . . . 1 1 2 . . . . . . . . 4 1 . . . . . Propulsion 9 | . . 1 1 1 . . . . . . . . . . . . 1 . . 4 . . 1 . Utility 27 | . 2 2 . 1 . . 1 . 4 . . 3 . . 4 . . 1 . 1 . . 3 5 Weapon 18 | . 1 . 4 2 . . . 3 5 . . 1 . . . . . . 1 . . . . 1 Tool/Special 3 | . . . . . . . . . . . . . . . 2 . 1 . . . . . . . Average Slot Usage (%) 91 | . 96 99 99 99 100 94 85 79 85 85 86 78 81 86 92 51 80 94 100 99 99 83 61 50 Engine 6 | . 11 7 9 11 11 11 6 5 1 . . 4 6 . 2 . . . . . . . . . Core 1 | . . 5 1 . . . . . 3 6 6 1 . 5 2 . 5 5 . . . 1 . . Treads 12 | . 28 28 22 22 22 22 25 . . . . . . . . . . . . . . . . . Hover 13 | . . . . . . . 4 20 25 26 26 26 30 33 28 21 23 30 35 34 34 27 24 11 Device 4 | . 6 . 6 . . 3 5 6 2 6 6 6 6 6 7 11 11 10 11 14 4 5 5 7 Storage 7 | . 14 14 11 11 11 7 6 6 6 6 6 6 6 6 5 5 5 5 5 5 5 5 3 . Processor 3 | . . . 3 11 . . 9 6 . 5 6 . . . . . 1 2 5 . . . . 11 Hackware 6 | . . . . . 10 5 . 6 16 . . . . . 20 11 14 14 6 7 23 21 18 9 Protection 2 | . 7 14 . . . . . . . 5 6 11 4 6 . . . . 4 4 . 3 1 . Ballistic Gun 20 | . 9 6 43 42 44 44 25 5 . . . . . . 2 . . 14 . 20 21 10 . . Ballistic Cannon 9 | . 14 21 . . . . . 20 24 25 25 16 25 26 20 . 13 6 23 2 . . . . Peak Build Rating 116 | 9 10 10 16 22 22 28 59 72 78 76 73 85 86 87 96 75 95 99 106 113 109 116 88 90 Average Rating 48 | 6 8 8 13 20 21 23 35 65 72 73 72 74 78 86 91 62 88 93 102 110 107 98 68 55 On Entrance 54 | . 9 8 10 15 22 22 20 59 68 76 73 73 66 86 87 52 75 80 98 103 109 60 86 14 Naked Turns . | . . . . . . . . . . . . . . . . . . . . . . . . . Heaviest Build 79 | 12 32 32 41 41 40 40 47 60 60 58 58 67 74 72 71 42 60 75 79 79 64 73 50 33 Greatest Support 100 | 40 40 40 40 40 40 40 100 60 62 58 58 63 74 74 74 66 74 79 79 79 76 79 75 63 Greatest Overweight (x) 2 | . . . 1 1 . . 2 . 1 . . 1 1 . 1 1 . . . 1 1 1 1 . Average Overweight (x) . | . . . . . . . . . . . . . . . . . . . . . . . . . Largest Inventory Capacity 15 | 8 15 15 15 15 15 15 15 15 15 15 15 15 15 15 15 15 15 15 15 15 15 15 15 5 Average Capacity 14 | 7 14 15 15 15 15 11 15 15 15 15 15 15 15 15 15 15 15 15 15 15 15 15 13 5 Most Carried 15 | 2 15 15 15 15 15 15 15 15 15 15 12 15 15 15 15 15 15 15 15 15 15 15 13 5 Average Carried 13 | . 12 14 14 14 14 11 14 14 14 12 11 14 14 14 14 14 14 14 14 14 14 10 11 4 Final Capacity 15 | 8 15 15 15 15 15 15 15 15 15 15 15 15 15 15 15 15 15 15 15 15 15 15 5 5 Final Carried 15 | 2 15 15 15 15 15 15 14 15 15 12 12 15 15 15 15 15 15 15 15 15 15 10 5 5 Class Distribution -------------------- 21% | Hacker-Gunner 18% | Gunner 18% | Scavenger-Gunner 11% | Tank 10% | Mutant 7% | Scavenger-Tank 5% | Hacker-Mutant 4% | Commander-Gunner Dominant Class ---------------- Mutant | -10/Materials Mutant | -10/Mines Scavenger-Tank | -9/Materials Gunner | -9/Storage Scavenger-Gunner | -9/Recycling Gunner | -9/Scraptown Scavenger-Gunner | -6/Factory Derelict-Gunner | -6/Waste Hacker-Gunner | -6/Factory Tank | -6/Lower Caves Tank | -6/Lower Caves Tank | -6/Zion Tank | -6/Deep Caves Tank | -5/Proximity Caves Hacker-Gunner | -5/Factory Hacker-Mutant | -5/Waste Hacker-Gunner | -5/Factory Hacker-Gunner | -5/Extension Scavenger-Gunner | -5/Cetus Scavenger-Gunner | -5/Archives Scavenger-Gunner | -5/Hub_04(d) Hacker-Mutant | -4/Factory Hacker-Mutant | -4/Waste Hacker-Mutant | -4/Factory Resources | -11 -10 -10 -9 -9 -9 -9 -6 -6 -6 -6 -6 -6 -6 -5 -5 -5 -5 -5 -5 -5 -5 -4 -4 -4 ----------- Run | Yrd Mat Min Mat Sto Rec Scr Fac Was Fac Low Low Zio Dee Pro Fac Was Fac Ext Cet Arc Hub Fac Was Fac Matter Collected 17634 | 347 916 183 1281 2196 178 608 630 411 2611 141 324 136 589 33 2426 . 685 1708 390 550 632 421 . 238 Remotely . | . . . . . . . . . . . . . . . . . . . . . . . . . Salvage Created 17509 | 245 900 309 2329 4108 485 . 265 220 2379 29 176 . 133 . 1717 . 555 1834 127 460 704 314 . 220 Parts 929 | 20 68 24 150 237 11 . 6 1 97 1 8 1 11 . 68 . 22 81 6 43 30 37 . 7 Haulers Intercepted 20 | . 1 . 5 5 . . 1 . 3 . . . . . 2 . 1 . . . 1 . . 1 Recyclers Shooed 26 | . 8 1 4 2 1 . 3 . 6 . . . . . . . . 1 . . . . . . Parts Field Recycled . | . . . . . . . . . . . . . . . . . . . . . . . . . Retrieved Matter . | . . . . . . . . . . . . . . . . . . . . . . . . . Parts Self-Destructed 10 | . . . . . . . . . . . 6 4 . . . . . . . . . . . . Prevented . | . . . . . . . . . . . . . . . . . . . . . . . . . Kills | -11 -10 -10 -9 -9 -9 -9 -6 -6 -6 -6 -6 -6 -6 -5 -5 -5 -5 -5 -5 -5 -5 -4 -4 -4 ------- Run | Yrd Mat Min Mat Sto Rec Scr Fac Was Fac Low Low Zio Dee Pro Fac Was Fac Ext Cet Arc Hub Fac Was Fac Combat Hostiles Destroyed 267 | . 13 10 33 65 2 . 1 1 39 3 6 1 3 . 33 . 7 28 3 2 6 11 . . Melee 2 | . . . . . . . . . . . . . . . . . . 2 . . . . . . Guns 120 | . 6 2 32 55 2 . 1 . . . . . . . 3 . . 12 . . 6 1 . . Cannons 79 | . 6 8 . . . . . 1 22 1 3 1 2 . 11 . 5 14 3 2 . . . . AOE 65 | . 1 . 1 10 . . . . 17 2 3 . 1 . 19 . 1 . . . . 10 . . Classes Destroyed 24 | 3 5 . 2 4 . . . 1 4 . 1 . 1 . . . . 3 . . . . . . Worker 48 | 2 14 . 11 9 . . . . 2 . . . . . 3 . 3 . . . 3 1 . . Builder 32 | . 2 1 4 10 1 . . . 1 . . . . . 6 . 1 2 . . 1 1 . 2 Tunneler 10 | 5 1 . 2 . . . . . 1 . . . . . . . . . . . 1 . . . Hauler 20 | . 1 . 5 5 . . 1 . 3 . . . . . 2 . 1 . . . 1 . . 1 Recycler 39 | 1 4 1 6 7 5 . 1 . 4 . . . . . 6 . 1 2 . . . 1 . . Mechanic 9 | . . . . 5 . . . . 1 . . . . . 1 . . 2 . . . . . . Operator 16 | . . . . 3 . . . . 2 . . . . . 2 . . . . 9 . . . . Watcher 19 | . 3 . 5 2 . . . . 1 . . . . . 2 . 1 . 1 . 3 . . 1 Swarmer 66 | . 5 6 10 3 . . . . . 3 3 . . . 19 . . 7 . . . 10 . . Cutter 2 | . . . . . . . . . 2 . . . . . . . . . . . . . . . Saboteur 2 | . . . . . . . . . 1 . . . . . . . . 1 . . . . . . Grunt 104 | . 8 4 13 35 . . . . 20 . . . . . 8 . 4 11 . . 1 . . . Brawler 5 | . . . 1 1 . . . . 1 . . . . . . . . 2 . . . . . . Duelist 11 | . . . . 9 . . . . 2 . . . . . . . . . . . . . . . Protector 3 | . . . . 3 . . . . . . . . . . . . . . . . . . . . Sentry 44 | . . . 9 14 2 . 1 . 6 . . . . . 4 . 1 2 . 2 3 . . . Demolisher 1 | . . . . . . . . . . . . . . . . . . 1 . . . . . . Specialist 1 | . . . . . . . . . . . . . . . . . . 1 . . . . . . Hunter 5 | . . . . . . . . . 3 . . . . . . . . 2 . . . . . . Programmer 12 | . . . . . . . . . 4 . 1 . . . 2 . 2 . . . 2 1 . . Behemoth 1 | . . . . . . . . . . . . . . . . . . 1 . . . . . . Compactor 1 | . . . . . . . . 1 . . . . . . . . . . . . . . . . Cetus Guard 3 | . . . . . . . . . . . . . . . . . . . 3 . . . . . Z-Light 3 | . . . . . . . . . . . . . 3 . . . . . . . . . . . Wasp 1 | . . . . . . . . . 1 . . . . . . . . . . . . . . . Thug 3 | . . . . . . . . . 1 . 1 . . . . . . 1 . . . . . . Butcher 2 | . . . . . . . . . 1 . 1 . . . . . . . . . . . . . Guerrilla 1 | . . . . . . . . . . . . . . . . . . 1 . . . . . . Mutant 1 | . . . . . . . . . . . 1 . . . . . . . . . . . . . Best Kill Streak 12 | 5 4 5 6 9 2 . 2 1 9 3 3 1 2 . 11 . 6 12 2 7 4 11 . 1 Combat Bots Only 10 | . 4 3 4 8 1 . 1 1 7 3 3 1 2 . 10 . 3 9 1 2 3 10 . . Max Kills in Single Turn 6 | 1 2 1 1 4 1 . 1 1 5 2 2 1 1 . 6 . 1 2 1 1 2 6 . 1 Gunslinging 1 | . . . . 1 . . . . . . . . . . . . . . . . . . . . Exploded 5 | . 1 . 1 3 . . . . 3 2 2 . 1 . 5 . 1 . . . . 5 . . Melee 1 | . . . . . . . . . . . . . . . . . . 1 . . . . . . Uniques/NPCs Destroyed 1 | . . . . . . . . . . . . 1 . . . . . . . . . . . . Imprinter (-6/Zion) Combat | -11 -10 -10 -9 -9 -9 -9 -6 -6 -6 -6 -6 -6 -6 -5 -5 -5 -5 -5 -5 -5 -5 -4 -4 -4 -------- Run | Yrd Mat Min Mat Sto Rec Scr Fac Was Fac Low Low Zio Dee Pro Fac Was Fac Ext Cet Arc Hub Fac Was Fac Hostile Shots Fired 1461 | . 80 41 106 106 6 . 49 3 216 25 22 57 22 . 208 . 129 31 13 8 74 148 5 112 Missed 558 | . 23 11 33 25 1 . 24 1 101 11 7 23 7 . 86 . 54 11 4 . 21 64 . 51 Hits 903 | . 57 30 73 81 5 . 25 2 115 14 15 34 15 . 122 . 75 20 9 8 53 84 5 61 Melee 26 | . . . . 7 . . . . . . . . . . 1 . . 2 . . 11 . 5 . Projectile 877 | . 57 30 73 74 5 . 25 2 115 14 15 34 15 . 121 . 75 18 9 8 42 84 . 61 AOE 15 | . 1 . . . . . . . . . . 1 . . . . 1 1 . . . 4 . 7 Critical Strikes 38 | . . . 1 6 1 . . . 3 . 2 . . . 4 . 4 2 2 . 9 1 3 . Actively Blocked 2 | . . . . . . . . . . . 2 . . . . . . . . . . . . . Part Disruptions 1 | . . . . . . . . . . . . . . . . . . . . . . 1 . . Damage Taken 16320 | . 704 351 647 1273 71 . 304 79 1666 198 233 492 822 . 2320 . 1387 537 230 220 1100 1809 244 1633 Core 2647 | . 91 46 92 213 . . 25 . 212 13 . . 214 . 240 . 146 65 . . 132 225 137 796 Absorbed by Shields 351 | . . . 194 . . . . . . . . . . . . . . 157 . . . . . . Redirected to Shielding 111 | . 3 7 . . . . . . . . 59 42 . . . . . . . . . . . . Regen/Repaired (Parts) 1951 | . . . 264 280 . . . 34 438 . . . . . 637 . 128 . . . . 170 . . Core Remaining (%) 50 | 100 . 45 . . . 23 . . . . . . . 45 . . . . . . 41 . . . Volleys Fired 915 | 12 122 29 131 139 14 . 13 8 102 4 17 5 11 . 106 . 39 60 12 21 34 20 . 16 Largest 4 | 2 2 2 4 4 4 . 4 4 4 3 4 3 4 . 4 . 3 4 4 4 4 3 . 2 Hottest 250 | 60 60 60 99 102 92 . 92 192 184 128 172 250 183 . 184 . 134 192 240 190 138 100 . 153 Shots Fired 2727 | 24 240 58 520 543 56 . 50 32 280 6 48 9 34 . 250 . 65 205 44 86 116 41 . 20 Gun 1735 | 24 131 24 519 531 56 . 50 4 . . . 2 . . 38 . . 133 1 64 111 32 . 15 Cannon 941 | . 109 34 . . . . . 28 264 3 46 7 30 . 202 . 65 72 43 22 5 6 . 5 Launcher 49 | . . . 1 10 . . . . 16 3 2 . 4 . 10 . . . . . . 3 . . Special 2 | . . . . 2 . . . . . . . . . . . . . . . . . . . . Kinetic 2606 | 12 214 58 519 531 56 . 50 32 264 3 46 7 30 . 240 . 56 205 43 86 116 38 . . Thermal 5 | . . . . 2 . . . . . . . 2 . . . . . . 1 . . . . . Explosive 49 | . . . 1 10 . . . . 16 3 2 . 4 . 10 . . . . . . 3 . . Electromagnetic 67 | 12 26 . . . . . . . . . . . . . . . 9 . . . . . . 20 Robot Hit Streak 37 | 3 12 10 15 37 12 . 7 8 9 1 3 4 2 . 11 . 16 35 6 14 12 7 . 10 Robot Miss Streak 10 | 2 5 4 10 3 2 . 3 6 10 1 6 5 7 . 5 . 3 3 5 4 4 2 . 1 Penetration Max 2 | . . . . . . . . 1 1 . . . . . 1 . . 2 1 . 1 1 . . Secondary Targets 20 | . 2 . 3 14 . . . . . . . . . . . . . . . . 1 . . . Max Gunslinging Chain 1 | . 1 . 1 1 . . . . . . . . . . . . . . . . 1 . . . Shots Hit Robots 1571 | 12 142 35 303 360 34 . 32 13 133 2 15 7 9 . 117 . 45 140 23 46 67 21 . 15 Core Hits 754 | 9 49 18 114 162 12 . 14 4 100 1 10 2 7 . 73 . 19 71 9 25 32 17 . 6 Critical Kills 44 | 1 . . 3 1 . . . 1 1 . . . 1 . 9 . . 16 4 4 3 . . . Critical Parts Destroyed 46 | . 1 . 2 . 1 . . 2 2 . . 1 . . 13 . . 15 3 2 4 . . . Critical Strikes 138 | 1 4 2 5 1 1 . . 6 11 . 1 2 1 . 34 . 11 34 10 6 8 . . . Destroy 100 | 1 1 . 5 1 1 . . 6 3 . . 1 1 . 23 . . 34 9 6 8 . . . Blast 37 | . 3 2 . . . . . . 8 . 1 1 . . 11 . 10 . 1 . . . . . Corrupt 1 | . . . . . . . . . . . . . . . . . 1 . . . . . . . Melee Attacks 30 | . . . . . . . . . . . . 21 . . . . . 4 . . 3 2 . . Impact . | . . . . . . . . . . . . . . . . . . . . . . . . . Slashing . | . . . . . . . . . . . . . . . . . . . . . . . . . Piercing 30 | . . . . . . . . . . . . 21 . . . . . 4 . . 3 2 . . Sneak Attacks . | . . . . . . . . . . . . . . . . . . . . . . . . . Combat Hostiles . | . . . . . . . . . . . . . . . . . . . . . . . . . Follow-up Attacks . | . . . . . . . . . . . . . . . . . . . . . . . . . Damage Inflicted 40886 | 166 1929 480 3280 6748 533 . 498 398 6918 370 814 226 605 . 6295 . 1811 3910 724 1259 2221 1324 . 377 Guns 17921 | 120 697 140 3187 5687 533 . 498 46 . . . 85 . . 425 . . 2433 . 951 2221 682 . 216 Cannons 14741 | . 1176 340 . . . . . 352 4125 32 618 141 333 . 3507 . 1634 1373 724 308 . . . 78 Explosions 8072 | 46 56 . 93 1049 . . . . 2793 338 196 . 272 . 2363 . 177 . . . . 642 . 47 Melee 104 | . . . . . . . . . . . . . . . . . . 104 . . . . . . Ramming 36 | . . . . . . . . . . . . . . . . . . . . . . . . 36 Kinetic 31723 | 38 1721 480 3187 5687 533 . 498 398 4125 32 618 141 333 . 3932 . 1308 3806 724 1259 2221 682 . . Thermal 630 | 46 56 . . 12 . . . . . . . 85 . . 207 . 177 . . . . . . 47 Explosive 7418 | . . . 93 1049 . . . . 2672 338 196 . 272 . 2156 . . . . . . 642 . . Electromagnetic 975 | 82 152 . . . . . . . 121 . . . . . . . 326 . . . . . . 294 Impact . | . . . . . . . . . . . . . . . . . . . . . . . . . Slashing . | . . . . . . . . . . . . . . . . . . . . . . . . . Piercing 104 | . . . . . . . . . . . . . . . . . . 104 . . . . . . Highest Corruption 19 | . 2 2 . . . . 1 1 5 5 6 6 4 4 1 6 9 9 12 12 2 4 11 19 Average Corruption 5 | . 1 2 . . . . 1 1 2 5 5 4 4 4 1 4 7 9 11 8 1 2 9 13 Corruption Purged 13 | . . . . . . . . . . . . . . . 1 . . . . 12 . . . . Corruption Blocked . | . . . . . . . . . . . . . . . . . . . . . . . . . Effects 217 | . 10 4 . . . . 1 3 36 8 12 2 11 7 3 1 15 40 14 8 3 2 5 32 Message Errors 57 | . 4 1 . . . . . 2 10 2 1 1 5 2 . . 3 7 2 1 . 2 3 11 Matter Fused 49 | . 1 . . . . . 1 . 8 2 5 . 2 1 1 1 7 10 4 . 1 . . 5 Heat Flow Errors 24 | . . 2 . . . . . . 4 2 2 1 1 . . . 1 3 1 1 . . 1 5 Energy Discharges 18 | . . 1 . . . . . . 2 . 3 . 1 . . . . 4 2 1 . . . 4 Parts Rejected 3 | . 1 . . . . . . . 1 . . . . . . . . . . 1 . . . . Parts Fused 2 | . . . . . . . . . . . . . . . . . . 1 . . . . . 1 Data Loss (minor) 23 | . 1 . . . . . . . 6 1 . . 1 1 2 . . 5 2 1 1 . . 2 Data Loss (major) 11 | . 1 . . . . . . . . . 1 . 1 1 . . 3 1 . 1 1 . . 1 Misfires 9 | . . . . . . . . . 3 . . . . . . . 1 1 1 2 . . . 1 Alerts 9 | . 1 . . . . . . 1 1 1 . . . 2 . . . 2 . . . . . 1 Misdirections 2 | . . . . . . . . . . . . . . . . . . . . . . . 1 1 Weapon Failures 10 | . 1 . . . . . . . 1 . . . . . . . . 6 2 . . . . . Overload Shots 1 | . . . . . . . . . . . . . . . . . . . 1 . . . . . Overflow Damage 1034 | 11 21 . . 35 . . . . 151 76 107 22 . . 539 . 30 . 25 . . . . 17 Projectiles 551 | . 21 . . . . . . . 141 23 97 22 . . 207 . 15 . 25 . . . . . Explosions 483 | 11 . . . 35 . . . . 10 53 10 . . . 332 . 15 . . . . . . 17 Melee . | . . . . . . . . . . . . . . . . . . . . . . . . . Knockbacks 89 | . 9 2 . . . . . 1 23 . 4 3 2 . 17 . 11 15 2 . . . . . Impact . | . . . . . . . . . . . . . . . . . . . . . . . . . Kinetic 81 | . 9 2 . . . . . 1 22 . 4 3 2 . 15 . 8 13 2 . . . . . Secondary 8 | . . . . . . . . . 1 . . . . . 2 . 3 2 . . . . . . Self-Inflicted Damage 220 | . . . . 26 . . . . 39 21 . . . . 90 . . . . . . . . 44 Shots 7 | . . . . 1 . . . . 2 1 . . . . 2 . . . . . . . . 1 Rammed 5 | . . . . . . . . . . . . . . . . . . . . . . . . 5 Targets Rammed 5 | . . . . . . . . . . . . . . . . . . . . . . . . 5 Kicked . | . . . . . . . . . . . . . . . . . . . . . . . . . Crushed . | . . . . . . . . . . . . . . . . . . . . . . . . . Highest Temperature 488 | 40 108 161 272 112 42 . . 198 334 92 488 219 219 . 323 . 284 338 151 108 36 190 318 245 Average Temperature 60 | 21 26 24 61 20 14 . . 95 91 42 183 65 36 . 53 . 53 84 73 22 14 58 89 83 Received Heat Transfer 3149 | . 219 147 215 474 45 . 12 18 420 12 18 41 144 . 573 . 207 91 . 27 153 174 . 159 Effects 5 | . . . 4 . . . . . . . . . . . . . . . . . . . . 1 Energy Bleed 2 | . . . 1 . . . . . . . . . . . . . . . . . . . . 1 Interference 3 | . . . 3 . . . . . . . . . . . . . . . . . . . . . Siege Activations . | . . . . . . . . . . . . . . . . . . . . . . . . . Martial Activations . | . . . . . . . . . . . . . . . . . . . . . . . . . Shielding Activations . | . . . . . . . . . . . . . . . . . . . . . . . . . Robots Disrupted . | . . . . . . . . . . . . . . . . . . . . . . . . . Combat Hostiles . | . . . . . . . . . . . . . . . . . . . . . . . . . Robots Corrupted 1 | . . . . . . . . . . . . . . . . . 1 . . . . . . . Combat Hostiles . | . . . . . . . . . . . . . . . . . . . . . . . . . Parts Fried 7 | . . . . . . . . . . . . . . . . . 2 . . . . . . 5 Impact Corruptions . | . . . . . . . . . . . . . . . . . . . . . . . . . Robots Melted 1 | . . . . . . . . . . . . . . . . . 1 . . . . . . . Combat Hostiles 1 | . . . . . . . . . . . . . . . . . 1 . . . . . . . Parts Melted 10 | . . . . 1 . . 5 . 3 . . . . . . . . . . . . . . 1 Heat Transferred 662 | 100 50 . . 37 . . . . . . . 125 . . 150 . 150 . . . . . . 50 Parts Sabotaged 4 | . . . . . . . . . . . . . . . 4 . . . . . . . . . Parts Stolen . | . . . . . . . . . . . . . . . . . . . . . . . . . Parts Stripped . | . . . . . . . . . . . . . . . . . . . . . . . . . Power Chain Reactions 4 | 1 1 . . . . . . . . . . . . . . . 1 . . . . . . 1 Alert | -11 -10 -10 -9 -9 -9 -9 -6 -6 -6 -6 -6 -6 -6 -5 -5 -5 -5 -5 -5 -5 -5 -4 -4 -4 ------- Run | Yrd Mat Min Mat Sto Rec Scr Fac Was Fac Low Low Zio Dee Pro Fac Was Fac Ext Cet Arc Hub Fac Was Fac Maximum Alert Level 5 | . . . 2 5 4 . 1 . 5 . . . . . 5 4 4 4 3 2 5 4 2 1 Low Security (%) 35 | 100 100 100 56 13 . . 95 100 10 . . . . . 13 . . . . . . . . 82 Level 1 11 | . . . 42 9 . . 4 . . . . . . . 11 . . 8 . . 32 . 50 17 Level 2 7 | . . . 1 5 . . . . 7 . . . . . 1 . . 51 . 100 2 . 49 . Level 3 19 | . . . . 23 97 . . . 6 . . . . . 27 62 83 24 100 . 14 57 . . Level 4 14 | . . . . 32 2 . . . 20 . . . . . 34 37 16 15 . . 20 42 . . Level 5 8 | . . . . 1 . . . . 54 . . . . . 9 . . . . . 28 . . . High Security 2 | . . . . 14 . . . . . . . . . . 2 . . . . . . . . . Max Security . | . . . . . . . . . . . . . . . . . . . . . . . . . Sterilizations 1 | . . . . 1 . . . . . . . . . . . . . . . . . . . . Peak Influence 2629 | 15 161 95 410 2345 1100 . 213 68 2629 . . . . . 1955 1100 1134 1541 1038 640 1722 1219 416 232 Initial 1100 | . . 55 20 129 1100 . . 68 . . . . . . . 1100 756 541 862 403 197 790 416 221 Average 715 | 2 49 39 163 1052 961 . 45 28 1640 . . . . . 929 1090 892 716 952 598 1026 969 385 127 Influence Increases 18654 | 40 588 250 1269 3160 184 . 439 52 3509 115 235 . . . 2621 . 615 1860 366 361 1972 715 . 303 Destroy 0b10 Robot/C 7260 | . 260 200 660 1740 40 . 140 . 1180 60 80 . . . 660 . 140 920 160 80 720 220 . . Destroy 0b10 Robot/NC 1075 | 40 125 10 165 230 30 . 10 . 115 . . . . . 110 . 35 50 10 45 65 15 . 20 Destroy Leader 1454 | . 68 40 190 354 . . 62 . 268 10 20 . . . 108 . 44 94 . . 162 30 . 4 Allied During Kill 2935 | . . . . 561 . . 99 . 788 . . . . . . . . 612 115 125 635 . . . Trap Triggered on 0b10 60 | . . . . . . . . . 10 . . . . . 30 . . . . . 20 . . . Successful Hack 488 | . 35 . 60 55 6 . 24 . 92 . . . . . 46 . 20 17 . . 16 75 . 42 Select Force Hacks 210 | . 60 . 30 30 90 . . . . . . . . . . . . . . . . . . . Disable Machine 1185 | . 15 . 15 60 . . 45 . 270 . . . . . 420 . 15 15 15 75 195 45 . . Destroy Structure 1482 | . 10 . 14 100 3 . 59 52 336 . . . . . 392 . 106 62 66 36 114 120 . 12 Partial Spotted 105 | . . . . . . . . . 30 . . . . . 15 . 15 15 . . 30 . . . Lose Combat Pursuer 2400 | . 15 . 135 30 15 . . . 420 45 135 . . . 840 . 240 75 . . 15 210 . 225 Influence Decreases 19186 | 40 446 338 1016 1122 1961 754 242 249 966 1165 517 1211 . . 686 1278 590 1424 899 805 923 1137 875 542 Entered New Map 10540 | . . 87 34 178 1431 754 . 129 . 941 285 1211 . . . 1258 324 564 679 605 367 823 775 95 Time Decay 6105 | 40 426 241 566 694 380 . 222 120 576 214 222 . . . 536 20 206 410 140 170 326 214 40 342 Lost Part 725 | . 20 10 10 . . . . . 60 10 10 . . . 150 . 60 30 20 10 70 100 60 105 Lost Ally 810 | . . . . 250 . . 20 . 180 . . . . . . . . 120 60 20 160 . . . Purge Threat 1006 | . . . 406 . 150 . . . 150 . . . . . . . . 300 . . . . . . Squads Dispatched 136 | . 5 . 3 21 . . 2 . 41 . . . . . 23 . 5 8 . . 15 6 . 7 Investigation 46 | . 5 . 3 2 . . 1 . 12 . . . . . 10 . 2 2 . . 1 4 . 4 Extermination 14 | . . . . . . . 1 . 4 . . . . . 4 . 1 . . . 1 1 . 2 Reinforcement 29 | . . . . 3 . . . . 9 . . . . . 3 . 1 3 . . 8 1 . 1 Assault 30 | . . . . 13 . . . . 9 . . . . . 3 . . 3 . . 2 . . . Garrison 17 | . . . . 3 . . . . 7 . . . . . 3 . 1 . . . 3 . . . Intercept . | . . . . . . . . . . . . . . . . . . . . . . . . . Searches Triggered . | . . . . . . . . . . . . . . . . . . . . . . . . . Construction Impeded 10 | . . . . . . . . . 3 . . . . . 1 . 1 2 . . 1 1 . 1 Haulers Reinforced 2 | . . . . . . . . . 1 . . . . . 1 . . . . . . . . . Active Scanning Responses . | . . . . . . . . . . . . . . . . . . . . . . . . . Cargo Convoy Interrupts . | . . . . . . . . . . . . . . . . . . . . . . . . . Stealth | -11 -10 -10 -9 -9 -9 -9 -6 -6 -6 -6 -6 -6 -6 -5 -5 -5 -5 -5 -5 -5 -5 -4 -4 -4 --------- Run | Yrd Mat Min Mat Sto Rec Scr Fac Was Fac Low Low Zio Dee Pro Fac Was Fac Ext Cet Arc Hub Fac Was Fac Distress Signals 28 | . 2 . 4 5 . . . . 4 . . . . . 4 . 1 1 2 . 3 1 . 1 Communications Jammed . | . . . . . . . . . . . . . . . . . . . . . . . . . Distress Signals . | . . . . . . . . . . . . . . . . . . . . . . . . . Times Spotted 676 | . 26 9 50 107 2 . 8 5 97 6 13 14 8 . 110 6 35 53 9 6 41 37 6 28 Peak Tracking Total 17 | . 6 3 7 9 1 . 2 3 10 6 7 11 4 . 17 5 11 9 5 1 15 17 6 11 Tactical Retreats 75 | . 1 . 4 2 1 . . 1 13 3 7 2 . . 20 . 7 3 . . 1 5 . 5 Traps | -11 -10 -10 -9 -9 -9 -9 -6 -6 -6 -6 -6 -6 -6 -5 -5 -5 -5 -5 -5 -5 -5 -4 -4 -4 ------- Run | Yrd Mat Min Mat Sto Rec Scr Fac Was Fac Low Low Zio Dee Pro Fac Was Fac Ext Cet Arc Hub Fac Was Fac Traps Triggered 17 | . 3 . 1 . . . 1 . 4 . . . . . 1 . 1 2 . . 1 1 . 2 Indirectly . | . . . . . . . . . . . . . . . . . . . . . . . . . Trap Hack Attempts . | . . . . . . . . . . . . . . . . . . . . . . . . . Triggered . | . . . . . . . . . . . . . . . . . . . . . . . . . Disarmed 8 | . . . . . . . . . . . . . . . . . . 8 . . . . . . Reprogrammed 23 | . . . . . . . . . 4 . . . . . 16 . . . . . 3 . . . Reused 6 | . . . . . . . . . 1 . . . . . 3 . . . . . 2 . . . Traps Extracted . | . . . . . . . . . . . . . . . . . . . . . . . . . Installed . | . . . . . . . . . . . . . . . . . . . . . . . . . Triggered 6 | . . . . . . . . . 1 . . . . . 3 . . . . . 2 . . . Most Traps Carried 3 | . . 3 3 . . . . . . . . . . . . . . . . . . . . . Machines | -11 -10 -10 -9 -9 -9 -9 -6 -6 -6 -6 -6 -6 -6 -5 -5 -5 -5 -5 -5 -5 -5 -4 -4 -4 ---------- Run | Yrd Mat Min Mat Sto Rec Scr Fac Was Fac Low Low Zio Dee Pro Fac Was Fac Ext Cet Arc Hub Fac Was Fac Machines Disabled 83 | . 3 . 1 4 . . 3 . 18 . . 1 . . 28 . 1 2 1 5 13 3 . . Max in Single Turn 18 | . 1 . 1 1 . . . . 2 . . 1 . . 18 . 1 1 1 1 2 2 . . Garrison Access 5 | . . . . . . . . . 1 . . . . . 2 . 1 . . . 1 . . . Network Hub 2 | . . . . . . . . . . . . . . . . . . . . . 2 . . . Machines Repaired . | . . . . . . . . . . . . . . . . . . . . . . . . . Machines Dismantled 7 | . . . . 4 . . . . . . . . . . . . . . . . 3 . . . Machines Sabotaged . | . . . . . . . . . . . . . . . . . . . . . . . . . Overloaded Fab Kills . | . . . . . . . . . . . . . . . . . . . . . . . . . Hacking | -11 -10 -10 -9 -9 -9 -9 -6 -6 -6 -6 -6 -6 -6 -5 -5 -5 -5 -5 -5 -5 -5 -4 -4 -4 --------- Run | Yrd Mat Min Mat Sto Rec Scr Fac Was Fac Low Low Zio Dee Pro Fac Was Fac Ext Cet Arc Hub Fac Was Fac Machines Accessed 154 | . 11 . 16 16 10 3 3 . 34 . . . . . 25 . 4 10 . . 9 5 . 8 Terminals 89 | . 8 . 12 12 5 . 2 . 15 . . . . . 12 . 1 10 . . 8 1 . 3 Fabricators 11 | . . . . . . . . . 4 . . . . . 3 . 1 . . . . . . 3 Repair Stations 13 | . 1 . 2 2 . . . . 4 . . . . . 2 . 1 . . . . 1 . . Recycling Units 28 | . 2 . 1 1 5 . 1 . 8 . . . . . 6 . . . . . . 3 . 1 Scanalyzers 5 | . . . 1 . . . . . 2 . . . . . 1 . . . . . . . . 1 Garrison Access 5 | . . . . 1 . . . . 1 . . . . . 1 . 1 . . . 1 . . . Total Hacks 535 | . 35 . 61 46 29 25 5 . 80 . . . . . 99 . 12 41 . . 35 28 . 39 Successful 365 | . 16 . 43 34 17 25 2 . 58 . . . . . 73 . 8 21 . . 27 16 . 25 Failed 166 | . 18 . 17 11 12 . 3 . 22 . . . . . 26 . 4 19 . . 8 12 . 14 Catastrophic 13 | . 1 . 3 . . . 1 . 2 . . . . . 2 . . 1 . . . 1 . 2 Database Lockouts 4 | . 1 . 1 1 . . . . . . . . . . . . . 1 . . . . . . Manual 329 | . 31 . 37 24 27 . 5 . 47 . . 5 . . 55 . 3 25 2 . 30 16 . 22 Terminals 345 | . 30 . 48 29 20 . 4 . 48 . . . . . 56 . 3 41 . . 32 19 . 15 Fabricators 38 | . . . . . . . . . 9 . . . . . 10 . 4 . . . . . . 15 Repair Stations 57 | . 3 . 10 14 . . . . 6 . . . . . 16 . 4 . . . . 4 . . Recycling Units 42 | . 2 . 1 1 9 . 1 . 8 . . . . . 13 . . . . . . 5 . 2 Scanalyzers 19 | . . . 2 . . . . . 7 . . . . . 3 . . . . . . . . 7 Garrison Access 9 | . . . . 2 . . . . 2 . . . . . 1 . 1 . . . 3 . . . Terminal Hacks 117 | . 3 . 10 11 2 25 . . 11 . . . . . 20 . 1 14 . . 11 7 . 2 Record 21 | . . . 1 . . 20 . . . . . . . . . . . . . . . . . . Part Schematic 4 | . . . . . . . . . 1 . . . . . 2 . . . . . 1 . . . Robot Analysis 22 | . 2 . 2 5 1 5 . . 1 . . . . . 3 . . 3 . . . . . . Prototype ID Bank 7 | . 1 . 1 . . . . . 1 . . . . . 2 . . . . . 1 1 . . Open Door 12 | . . . . 6 . . . . . . . . . . . . 1 5 . . . . . . Branch Access Points 1 | . . . 1 . . . . . . . . . . . . . . . . . . . . . Emergency Access Points 1 | . . . . . . . . . . . . . . . . . . . . . . . . 1 Machine Index 1 | . . . . . . . . . . . . . . . . . . . . . 1 . . . Terminal Index 4 | . . . 1 . . . . . . . . . . . 1 . . . . . 1 1 . . Fabricator Index 1 | . . . . . . . . . . . . . . . . . . . . . . 1 . . Recycling Unit Index 1 | . . . . . . . . . . . . . . . . . . . . . . 1 . . Alert Level 1 | . . . 1 . . . . . . . . . . . . . . . . . . . . . Unreport Threat 7 | . . . 3 . 1 . . . 1 . . . . . . . . 2 . . . . . . Locate Traps 1 | . . . . . . . . . . . . . . . . . . . . . . 1 . . Disarm Traps 2 | . . . . . . . . . . . . . . . . . . 2 . . . . . . Reprogram Traps 6 | . . . . . . . . . 1 . . . . . 4 . . . . . 1 . . . Investigation Status 1 | . . . . . . . . . . . . . . . 1 . . . . . . . . . Recall Investigation 4 | . . . . . . . . . 1 . . . . . 3 . . . . . . . . . Recall Extermination 2 | . . . . . . . . . 1 . . . . . 1 . . . . . . . . . Recall Reinforcements 7 | . . . . . . . . . 2 . . . . . 1 . . 1 . . 3 . . . Recall Assault 2 | . . . . . . . . . 2 . . . . . . . . . . . . . . . Registered Components 1 | . . . . . . . . . . . . . . . . . . . . . . 1 . . Zone Layout 8 | . . . . . . . . . . . . . . . 2 . . 1 . . 3 1 . 1 Fabricator Hacks 16 | . . . . . . . . . 3 . . . . . 4 . 2 . . . . . . 7 Network Status 3 | . . . . . . . . . . . . . . . 1 . 1 . . . . . . 1 Load Schematic 7 | . . . . . . . . . 2 . . . . . 1 . 1 . . . . . . 3 Build 6 | . . . . . . . . . 1 . . . . . 2 . . . . . . . . 3 Repair Station Hacks 42 | . 1 . 10 12 . . . . 4 . . . . . 12 . 1 . . . . 2 . . Scan Component 22 | . 1 . 5 6 . . . . 2 . . . . . 6 . 1 . . . . 1 . . Repair 20 | . . . 5 6 . . . . 2 . . . . . 6 . . . . . . 1 . . Recycling Unit Hacks 2 | . . . . . 1 . . . . . . . . . 1 . . . . . . . . . Retrieve Components 2 | . . . . . 1 . . . . . . . . . 1 . . . . . . . . . Scanalyzer 16 | . . . 2 . . . . . 5 . . . . . 2 . . . . . . . . 7 Insert Component 8 | . . . 1 . . . . . 3 . . . . . 1 . . . . . . . . 3 Analyze 8 | . . . 1 . . . . . 2 . . . . . 1 . . . . . . . . 4 Garrison Access Hacks 4 | . . . . . . . . . 1 . . . . . 1 . 1 . . . 1 . . . Unlock Access 1 | . . . . . . . . . . . . . . . . . . . . . 1 . . . Seal Access 3 | . . . . . . . . . 1 . . . . . 1 . 1 . . . . . . . Unauthorized Hacks 168 | . 12 . 21 11 14 . 2 . 34 . . . . . 33 . 3 7 . . 15 7 . 9 Terminals 109 | . 10 . 20 8 10 . 1 . 20 . . . . . 15 . . 7 . . 13 3 . 2 Assimilate 6 | . . . 1 . . . . . 1 . . . . . . . . . . . 4 . . . Botnet 46 | . 5 . 7 3 5 . 1 . 8 . . . . . 8 . . 4 . . 2 1 . 2 Disrupt 1 | . . . . . . . . . . . . . . . 1 . . . . . . . . . Operators 5 | . . . 1 . . . . . 1 . . . . . 1 . . . . . 1 1 . . Skim 51 | . 5 . 11 5 5 . . . 10 . . . . . 5 . . 3 . . 6 1 . . Fabricators 16 | . . . . . . . . . 4 . . . . . 4 . 2 . . . . . . 6 Report 4 | . . . . . . . . . 1 . . . . . 1 . 1 . . . . . . 1 Prioritize 2 | . . . . . . . . . . . . . . . . . . . . . . . . 2 Liberate 6 | . . . . . . . . . 2 . . . . . 2 . . . . . . . . 2 Haulers 4 | . . . . . . . . . 1 . . . . . 1 . 1 . . . . . . 1 Repair Stations 6 | . . . . . . . . . 2 . . . . . 3 . 1 . . . . . . . Mechanics 1 | . . . . . . . . . . . . . . . 1 . . . . . . . . . Patch 5 | . . . . . . . . . 2 . . . . . 2 . 1 . . . . . . . Recycling Units 33 | . 2 . 1 1 4 . 1 . 8 . . . . . 11 . . . . . . 4 . 1 Reject 1 | . . . . . . . . . . . . . . . 1 . . . . . . . . . Recyclers 3 | . . . . . 1 . . . . . . . . . 1 . . . . . . 1 . . Mask 3 | . . . . . . . . . . . . . . . 3 . . . . . . . . . Tunnel 7 | . 2 . 1 1 3 . . . . . . . . . . . . . . . . . . . Fedlink 18 | . . . . . . . 1 . 8 . . . . . 6 . . . . . . 3 . . Scrapoids 1 | . . . . . . . . . . . . . . . . . . . . . . . . 1 Scanalyzers . | . . . . . . . . . . . . . . . . . . . . . . . . . Garrison Access 4 | . . . . 2 . . . . . . . . . . . . . . . . 2 . . . Reprogram 2 | . . . . 1 . . . . . . . . . . . . . . . . 1 . . . Intercept 2 | . . . . 1 . . . . . . . . . . . . . . . . 1 . . . Data Cores Recovered 4 | . . . . 1 . . . . 1 . . . . . 2 . . . . . . . . . Used . | . . . . . . . . . . . . . . . . . . . . . . . . . Hacking Detections 108 | . 9 . 14 12 7 . 1 . 21 . . . . . 19 . 2 7 . . 7 2 . 7 Full Trace Events 13 | . 4 . 1 1 . . . . 1 . . . . . 1 . . 2 . . . . . 3 Feedback Events . | . . . . . . . . . . . . . . . . . . . . . . . . . Feedback Blocked . | . . . . . . . . . . . . . . . . . . . . . . . . . Robot Schematics Acquired 3 | . . . . . . . . . . . . 3 . . . . . . . . . . . . Robots Built . | . . . . . . . . . . . . . . . . . . . . . . . . . Authchips . | . . . . . . . . . . . . . . . . . . . . . . . . . Time . | . . . . . . . . . . . . . . . . . . . . . . . . . Total Robot Build Rating . | . . . . . . . . . . . . . . . . . . . . . . . . . Part Schematics Acquired 25 | . . . 1 . . . . . 3 . . 15 . . 3 . . . . . 1 . . 2 Parts Built 11 | . . . . . . . . . 2 . . . . . 4 . . . . . . . . 5 Authchips . | . . . . . . . . . . . . . . . . . . . . . . . . . Time 351 | . . . . . . . . . 53 . . . . . 100 . . . . . . . . 198 Total Part Build Rating 62 | . . . . . . . . . 12 . . . . . 22 . . . . . . . . 28 Parts Repaired 20 | . . . 5 6 . . . . 2 . . . . . 6 . . . . . . 1 . . Time 826 | . . . 160 249 . . . . 50 . . . . . 334 . . . . . . 33 . . Parts Recycled . | . . . . . . . . . . . . . . . . . . . . . . . . . Recycled Matter . | . . . . . . . . . . . . . . . . . . . . . . . . . Retrieved Matter . | . . . . . . . . . . . . . . . . . . . . . . . . . Retrieved Components 6 | . . . . . 3 . . . . . . . . . 3 . . . . . . . . . Parts Scanalyzed 7 | . . . 1 . . . . . 3 . . . . . 1 . . . . . . . . 2 Part Schematics Acquired 6 | . . . 1 . . . . . 2 . . . . . 1 . . . . . . . . 2 Parts Damaged 2 | . . . . . . . . . 1 . . . . . 1 . . . . . . . . . Bothacking | -11 -10 -10 -9 -9 -9 -9 -6 -6 -6 -6 -6 -6 -6 -5 -5 -5 -5 -5 -5 -5 -5 -4 -4 -4 ------------ Run | Yrd Mat Min Mat Sto Rec Scr Fac Was Fac Low Low Zio Dee Pro Fac Was Fac Ext Cet Arc Hub Fac Was Fac Used RIF Installer . | . . . . . . . . . . . . . . . . . . . . . . . . . Robots Hacked . | . . . . . . . . . . . . . . . . . . . . . . . . . Non-combat . | . . . . . . . . . . . . . . . . . . . . . . . . . Combat . | . . . . . . . . . . . . . . . . . . . . . . . . . Robot Hacks Applied . | . . . . . . . . . . . . . . . . . . . . . . . . . Relay Couplers Released 5 | . . . . . . . . . 3 . . . . . 2 . . . . . . . . . Machine Destruction 2 | . . . . . . . . . . . . . . . 2 . . . . . . . . . Programmers 3 | . . . . . . . . . 3 . . . . . . . . . . . . . . . Fabnet Peak Effective % . | . . . . . . . . . . . . . . . . . . . . . . . . . Robots Rewired 7 | . . . . . . . . . . . . . . . . . . 7 . . . . . . Allies Hacked 2 | . . . . . . . . . 1 . . . . . . . . 1 . . . . . . Hacks Repelled . | . . . . . . . . . . . . . . . . . . . . . . . . . Allies | -11 -10 -10 -9 -9 -9 -9 -6 -6 -6 -6 -6 -6 -6 -5 -5 -5 -5 -5 -5 -5 -5 -4 -4 -4 -------- Run | Yrd Mat Min Mat Sto Rec Scr Fac Was Fac Low Low Zio Dee Pro Fac Was Fac Ext Cet Arc Hub Fac Was Fac Total Allies 63 | . . . 1 14 . 5 . 18 . . . . . . . . . 15 7 . 3 . . . Largest Group 22 | . . . 1 13 . 5 5 22 18 . . . . . . . . 11 10 8 7 . . . Highest-Rated Group 860 | . . . 10 158 . 235 235 836 724 . . . . . . . . 450 860 805 602 . . . Highest-Rated Ally 159 | . . . 10 31 . 47 47 50 50 . . . . . . . . 159 146 140 96 . . . Total Orders 15 | . . . 6 . . . . . . . . . . 7 . . . . . 1 1 . . . STAY 5 | . . . 3 . . . . . . . . . . . . . . . . 1 1 . . . FOLLOW 3 | . . . 3 . . . . . . . . . . . . . . . . . . . . . EXPLORE 4 | . . . . . . . . . . . . . . 4 . . . . . . . . . . RETURN 3 | . . . . . . . . . . . . . . 3 . . . . . . . . . . Ally Attacks 814 | . . . . 203 . . 53 98 143 . . . . . . . . 155 36 10 116 . . . Total Damage 20438 | . . . . 2434 . . 907 3288 4397 . . . . . . . . 3413 1751 416 3832 . . . Kills 141 | . . . . 29 . . 6 9 31 . . . . . . . . 24 6 2 34 . . . Allies Corrupted 8 | . . . . . . . . . 4 . . . . . . . . 3 . . 1 . . . Allies Melted . | . . . . . . . . . . . . . . . . . . . . . . . . . Intel | -11 -10 -10 -9 -9 -9 -9 -6 -6 -6 -6 -6 -6 -6 -5 -5 -5 -5 -5 -5 -5 -5 -4 -4 -4 ------- Run | Yrd Mat Min Mat Sto Rec Scr Fac Was Fac Low Low Zio Dee Pro Fac Was Fac Ext Cet Arc Hub Fac Was Fac Active Infowar (turns) 1375 | 26 850 . . . . . . 7 . 1 . . . . . . 172 . . . . . . 319 Optics 172 | . . . . . . . . . . . . . . . . . 172 . . . . . . . Sensors 327 | . . . . . . . . 7 . 1 . . . . . . . . . . . . . 319 Terrain 876 | 26 850 . . . . . . . . . . . . . . . . . . . . . . . Robot Analysis Total 22 | . 2 . 2 5 1 5 . . 1 . . . . . 3 . . 3 . . . . . . Derelict Logs Recovered 8 | . . 1 . . . . . . . 3 2 2 . . . . . . . . . . . . Drone Launches 3 | . . . . . . . . . . . . . . 3 . . . . . . . . . . Drone Recoveries 3 | . . . . . . . . . . . . . . 3 . . . . . . . . . . Exploration | -11 -10 -10 -9 -9 -9 -9 -6 -6 -6 -6 -6 -6 -6 -5 -5 -5 -5 -5 -5 -5 -5 -4 -4 -4 ------------- Run | Yrd Mat Min Mat Sto Rec Scr Fac Was Fac Low Low Zio Dee Pro Fac Was Fac Ext Cet Arc Hub Fac Was Fac Turns Passed 23425 | 132 1776 570 2550 3352 882 2484 583 339 2177 457 467 891 667 247 1681 53 433 990 299 355 725 442 81 792 Spaces Moved 21636 | 58 873 291 1144 1504 470 1510 417 428 3129 1016 911 1362 1061 394 2387 80 511 961 206 293 895 505 134 1096 Core 188 | 5 . . . . . . . . . . . . . . . . . . . . . . 32 151 Treads 6107 | 53 873 291 1144 1504 470 1510 262 . . . . . . . . . . . . . . . . . Legs . | . . . . . . . . . . . . . . . . . . . . . . . . . Wheels . | . . . . . . . . . . . . . . . . . . . . . . . . . Hover 14902 | . . . . . . . 155 428 3129 1016 911 1362 1061 394 2387 80 511 961 206 293 895 505 102 506 Flight 439 | . . . . . . . . . . . . . . . . . . . . . . . . 439 Fastest Speed 38 | 50 160 160 160 160 160 160 52 52 38 43 43 43 48 48 44 56 59 60 60 56 45 53 50 40 Average Speed 82 | 150 160 160 160 160 160 160 120 52 52 43 43 56 48 48 46 57 59 62 60 59 51 61 54 52 Slowest Speed 240 | 160 160 160 240 240 160 160 200 52 118 43 43 110 110 48 115 106 65 63 60 131 102 131 110 71 Overloaded Moves . | . . . . . . . . . . . . . . . . . . . . . . . . . Propulsion Burnouts . | . . . . . . . . . . . . . . . . . . . . . . . . . Robots Hopped . | . . . . . . . . . . . . . . . . . . . . . . . . . Potential Cave-ins . | . . . . . . . . . . . . . . . . . . . . . . . . . Cave-ins Triggered . | . . . . . . . . . . . . . . . . . . . . . . . . . Exploration Rate (%) 66 | 5 96 54 80 96 74 83 9 95 70 94 88 87 82 85 52 73 9 87 67 89 71 19 86 21 Regions Visited 24 Branch Regions 13 Pre-discovered Areas 24 | . 3 1 4 3 5 . . . 3 2 . 2 . . 1 . . . . . . . . . Known Exits Taken 11 | . 1 . 1 1 1 . . . . 1 1 1 . 1 . . 1 . 1 . 1 . . . Unknown Exits Taken 7 | 1 . 1 . . . 1 . . 1 . . . 1 . . . . 1 . 1 . . . . Scrap Searched 15 | . . . . . . 5 . . . 3 3 3 . 1 . . . . . . . . . . Spaces Dug 129 | . . . . 9 . . . . 39 15 2 . . . 40 . 4 . . . 8 12 . . Terrain Destroyed 1030 | 4 6 . 12 96 . . . 11 308 56 49 . 41 . 226 . 48 24 12 30 41 60 . 6 Melee 4 | . . . . . . . . . . . . . . . . . . . . . 2 2 . . Projectile 344 | . . . . . . . . 11 84 . 25 . 10 . 74 . 21 24 12 30 39 14 . . AOE 682 | 4 6 . 12 96 . . . . 224 56 24 . 31 . 152 . 27 . . . . 44 . 6 Terrain Rammed . | . . . . . . . . . . . . . . . . . . . . . . . . . Walls Destroyed . | . . . . . . . . . . . . . . . . . . . . . . . . . Machines Disabled . | . . . . . . . . . . . . . . . . . . . . . . . . . Actions | -11 -10 -10 -9 -9 -9 -9 -6 -6 -6 -6 -6 -6 -6 -5 -5 -5 -5 -5 -5 -5 -5 -4 -4 -4 --------- Run | Yrd Mat Min Mat Sto Rec Scr Fac Was Fac Low Low Zio Dee Pro Fac Was Fac Ext Cet Arc Hub Fac Was Fac Total 25290 | 78 1032 345 1620 2052 565 1579 470 529 3456 1030 948 1433 1193 451 2762 85 584 1215 351 426 1058 595 140 1293 Wait 1695 | . 7 1 257 282 78 48 5 68 116 . 16 6 67 51 151 1 9 89 115 80 87 22 3 136 Move 21615 | 57 872 290 1143 1503 469 1509 417 427 3128 1015 910 1361 1060 393 2387 79 510 960 205 292 894 505 133 1096 Hop . | . . . . . . . . . . . . . . . . . . . . . . . . . Pick Up 261 | 2 13 9 22 21 1 11 9 7 29 . 2 13 16 2 35 2 8 17 6 9 5 9 3 10 Fast Attach 98 | 7 6 1 6 4 . 3 4 1 8 . . 2 4 1 7 2 5 9 1 5 2 6 . 14 Attach 106 | . . 1 7 4 1 . 6 . 9 4 1 4 7 . 18 1 6 8 2 1 3 17 . 6 Detach 45 | . 1 . 3 . 1 1 1 1 5 3 . 1 1 . 8 . 1 6 1 2 1 7 . 1 Swap 215 | . 4 6 21 42 1 3 4 7 31 2 2 9 11 1 29 . 1 11 5 6 13 5 1 . Drop 231 | . 7 8 30 29 . 4 11 10 27 . . 11 16 3 21 . 5 19 4 10 5 2 . 9 Fire 915 | 12 122 29 131 139 14 . 13 8 102 4 17 5 11 . 106 . 39 60 12 21 34 20 . 16 Melee 30 | . . . . . . . . . . . . 21 . . . . . 4 . . 3 2 . . Ram 5 | . . . . . . . . . . . . . . . . . . . . . . . . 5 Kick . | . . . . . . . . . . . . . . . . . . . . . . . . . Crush . | . . . . . . . . . . . . . . . . . . . . . . . . . Escape Stasis 8 | . . . . . . . . . . . . . . . . . . 8 . . . . . . Rewire 27 | . . . . . . . . . 1 2 . . . . . . . 24 . . . . . . Trap . | . . . . . . . . . . . . . . . . . . . . . . . . . Miscellaneous 39 | . . . . 28 . . . . . . . . . . . . . . . . 11 . . . Route ------- -11/Scrapyard -10/Materials (discovered 6 exits: *Mat x3 / *Min x2 / [*Sub]) -10/Mines -9/Materials (discovered 7 exits: *Mat x3 / *Min x2 / *Sto x2) -9/Storage (discovered 2 exits: *Mat / *Rec) -9/Recycling (discovered 2 exits: Fac / *Scr) -9/Scraptown (discovered 2 exits: *Fac x2) -6/Factory -6/Waste -6/Factory (discovered 6 exits: *Fac x4 / [*Low x2]) -6/Lower Caves -6/Lower Caves (discovered 2 exits: *Fac / *Zio) -6/Zion (discovered 2 exits: *Dee / [*Pro]) -6/Deep Caves -5/Proximity Caves -5/Factory (discovered 5 exits: *Fac x2 / *Upp x2 / Ext) -5/Waste -5/Factory (discovered 6 exits: Fac x3 / Upp / *Ext x2) -5/Extension (discovered 3 exits: *Fac x2 / *Cet) -5/Cetus (discovered 2 exits: *Fac / *Arc) -5/Archives (discovered 3 exits: *Fac / *Hub x2) -5/Hub_04(d) (discovered 3 exits: *Fac x3) -4/Factory (discovered 7 exits: *Res x4 / Upp x2 / [*Arm]) -4/Waste -4/Factory History --------- Turn | Location | Event 7 | -11/Scrapyard | Discovered new exit (range 16) 133 | -11/Scrapyard | Entered Materials 134 | -10/Materials | Met a group of wandering Federalists 304 | -10/Materials | Build established: Mutant 447 | -10/Materials | Discovered new exit (range 15) 460 | -10/Materials | Discovered new exit (range 9) 741 | -10/Materials | Discovered new exit (range 16) 1000 | -10/Materials | Discovered new exit (range 15) 1201 | -10/Materials | Central database locked down 1211 | -10/Materials | Discovered new exit (range 12) 1273 | -10/Materials | Identified exit to Mines 1381 | -10/Materials | Learned location of 2 exits from Subcaves 1419 | -10/Materials | Loaded intel: 4 trap records 1447 | -10/Materials | Learned location of 1 exit from Storage 1483 | -10/Materials | Learned Storage stockpile data 1909 | -10/Materials | Entered Mines 2010 | -10/Mines | Found a hidden stash of uninstalled traps 2158 | -10/Mines | Discovered new exit (range 6) 2312 | -10/Mines | Learned location of Storage (-9) 2451 | -10/Mines | Core integrity fell below 50% 2479 | -10/Mines | Entered Materials 2479 | -9/Materials | Evolved 2 slots: Weapon x2 2759 | -9/Materials | Build established: Scavenger-Tank 2873 | -9/Materials | Central database locked down 2873 | -9/Materials | Identified exit to Mines 2873 | -9/Materials | Identified exit to Storage 3363 | -9/Materials | Identified exit to Materials 3402 | -9/Materials | Learned Storage security intel 3429 | -9/Materials | Learned location of 1 exit from Recycling 3452 | -9/Materials | Learned Storage emergency access door positions 3458 | -9/Materials | Learned Storage non-interactive machine intel 3475 | -9/Materials | Learned Storage stockpile data 4130 | -9/Materials | Discovered exit to Materials (range 15) 4480 | -9/Materials | Build established: Scavenger-Gunner 4517 | -9/Materials | Repaired Hvy. Assault Rifle 4550 | -9/Materials | Repaired Hvy. Assault Rifle 4601 | -9/Materials | Learned 4 Recycling zone layouts 4658 | -9/Materials | Repaired Hvy. Assault Rifle 4673 | -9/Materials | Learned Storage machine intel 4692 | -9/Materials | Repaired Hvy. Assault Rifle 4725 | -9/Materials | Repaired Imp. Ion Engine 4787 | -9/Materials | Learned Storage interactive machine intel 5029 | -9/Materials | Entered Storage 5029 | -9/Storage | Accompanied by 1 ally 5031 | -9/Storage | Identified exit to Recycling 5034 | -9/Storage | Loaded intel: 54 machine locations 5035 | -9/Storage | Loaded intel: 33 non-interactive machine locations 5036 | -9/Storage | Loaded intel: 21 interactive machine locations 5469 | -9/Storage | Build established: Gunner 5761 | -9/Storage | Met a pair of Derelict thieves 6229 | -9/Storage | First assault squad dispatched 6240 | -9/Storage | Central database locked down 6242 | -9/Storage | Assisted by bots powering up and referring to "LRC-V3" 6305 | -9/Storage | Learned Materials trap positions 6333 | -9/Storage | Lost 3 allies 6410 | -9/Storage | Learned 4 Materials zone layouts 6447 | -9/Storage | Loaded intel: 19 trap records 6474 | -9/Storage | Learned 4 Recycling zone layouts 6522 | -9/Storage | Learned Storage trap positions 6534 | -9/Storage | Build established: Commander-Gunner 6552 | -9/Storage | Learned location of Armory (-4) 6564 | -9/Storage | Learned Materials security intel 6624 | -9/Storage | Core integrity fell below 50% 7163 | -9/Storage | Lost 4 allies 7273 | -9/Storage | Repaired Imp. Assault Rifle 7325 | -9/Storage | Repaired Imp. Assault Rifle 7359 | -9/Storage | Repaired Hvy. Assault Rifle 7437 | -9/Storage | Build established: Gunner 7791 | -9/Storage | Repaired Imp. Assault Rifle 7824 | -9/Storage | Repaired Hvy. Assault Rifle 7857 | -9/Storage | Repaired Hvy. Assault Rifle 7885 | -9/Storage | Garrison activated, responded to threat 7892 | -9/Storage | High security lockdown imminent 7972 | -9/Storage | High security lockdown engaged 8033 | -9/Storage | Sterilization system engaged 8033 | -9/Storage | Non-combat units ordered to evacuate 8038 | -9/Storage | Destroyed 8 combat bots 8096 | -9/Storage | Destroyed 8 combat bots 8133 | -9/Storage | Combat units ordered to evacuate 8333 | -9/Storage | Ambient heat levels rising (+10) 8381 | -9/Storage | Entered Recycling 8382 | -9/Recycling | Met a Zionite searching for Scraptown 8382 | -9/Recycling | Identified exit to Factory 8383 | -9/Recycling | Identified exit to Scraptown 8712 | -9/Recycling | Build established: Scavenger-Gunner 8947 | -9/Recycling | Learned location of 1 exit from Recycling 8997 | -9/Recycling | Learned location of Zion (-6) 9038 | -9/Recycling | Learned Storage trap positions 9068 | -9/Recycling | Loaded intel: 5 recycling unit locations 9090 | -9/Recycling | Learned location of 3 exits from Materials 9103 | -9/Recycling | Learned location of 1 exit from Recycling 9143 | -9/Recycling | Scanned before Scraplab entrance 9203 | -9/Recycling | Learned location of 3 exits from Materials 9247 | -9/Recycling | Entered Scraplab 9263 | -9/Recycling | Entered Scraptown 9425 | -9/Scraptown | Build established: Gunner 9510 | -9/Scraptown | Discovered new exit (range 13) 9631 | -9/Scraptown | Visited Comm Corps 9644 | -9/Scraptown | Visited Science Testing Area 9668 | -9/Scraptown | Visited CR-KLE's Repair Center 9703 | -9/Scraptown | Visited Symbiants 9755 | -9/Scraptown | Visited UFD Registry 9755 | -9/Scraptown | Registered with UFD as "Arcbay" 9774 | -9/Scraptown | Visited SPCMW 9790 | -9/Scraptown | Visited Shadow of the Wyrm 10004 | -9/Scraptown | Build established: Scavenger-Gunner 10289 | -9/Scraptown | Visited Research Penetration Think Tank 10446 | -9/Scraptown | Visited Analyses Database 10486 | -9/Scraptown | Visited Scrapoid Pod Storage 10530 | -9/Scraptown | Found Scrapoid Pod 10817 | -9/Scraptown | Build established: Gunner 11308 | -9/Scraptown | Scrapoid Pod released 09S05-D (x5) 11368 | -9/Scraptown | Visited Junk Repository 11405 | -9/Scraptown | Visited Chapter 10 11435 | -9/Scraptown | Visited Junk Repository 11477 | -9/Scraptown | Visited Abandonware Association 11496 | -9/Scraptown | Learned abandonware demo "TRNCOAT.EXE" 11496 | -9/Scraptown | Learned abandonware demo "MELTYB.EXE" 11656 | -9/Scraptown | Met Optimus 11656 | -9/Scraptown | Accepted into 0bPrime 11738 | -9/Scraptown | Discovered new exit (range 5) 11747 | -9/Scraptown | Entered Factory 11747 | -6/Factory | Accompanied by 5 allies 11747 | -6/Factory | Evolved 6 slots: Propulsion x4, Utility x2 11963 | -6/Factory | Loaded intel: 8 recycling unit locations 12040 | -6/Factory | Build established: Scavenger-Gunner 12177 | -6/Factory | Discovered new exit (range 15) 12330 | -6/Factory | Sucked down chute 12330 | -6/Factory | Entered Waste 12334 | -6/Waste | Spotted C-40 Crusher 12347 | -6/Waste | Warlord forces began an assault 12405 | -6/Waste | 4 allies followed down the chute 12420 | -6/Waste | Allies destroyed C-40 Crusher 12445 | -6/Waste | Spotted C-40 Crusher 12447 | -6/Waste | Spotted C-40 Crusher 12455 | -6/Waste | Allies destroyed C-40 Crusher 12457 | -6/Waste | Allies destroyed C-40 Crusher 12462 | -6/Waste | Spotted C-40 Crusher 12466 | -6/Waste | Destroyed C-40 Crusher 12488 | -6/Waste | Lost 4 allies 12517 | -6/Waste | Found Prototype Device 12517 | -6/Waste | Identified Exp. Sensor Array 12601 | -6/Waste | Discovered new exit (range 12) 12667 | -6/Waste | Build established: Derelict-Gunner 12669 | -6/Waste | Entered Factory 12669 | -6/Factory | Accompanied by 18 allies 12835 | -6/Factory | Allied Derelicts emerged from ambush trap array 12870 | -6/Factory | Garrison activated, responded to threat 12922 | -6/Factory | Loaded intel: 8 recycling unit locations 12922 | -6/Factory | Learned location of Protoforge (-2) 13019 | -6/Factory | First assault squad dispatched 13023 | -6/Factory | Discovered new exit (range 16) 13173 | -6/Factory | Lost 4 allies 13226 | -6/Factory | Build established: Hacker-Gunner 13239 | -6/Factory | Discovered new exit (range 15) 13384 | -6/Factory | Spotted B-75 Beast 13439 | -6/Factory | Allies destroyed B-75 Beast 13474 | -6/Factory | Discovered new exit (range 16) 13514 | -6/Factory | Repaired Gravmag Array 13660 | -6/Factory | Garrison activated, responded to threat 13774 | -6/Factory | Learned location of 1 exit from Hub_04(d) 13811 | -6/Factory | Learned location of 1 exit from Lower Caves 13835 | -6/Factory | Lost 3 allies 13861 | -6/Factory | Identified exit to Factory 13872 | -6/Factory | Learned location of 1 exit from Lower Caves 13904 | -6/Factory | Loaded intel: 56 trap records 13920 | -6/Factory | Repaired Gravmag Array? 14096 | -6/Factory | Destroyed 7 combat bots 14124 | -6/Factory | Garrison activated, responded to threat 14248 | -6/Factory | Learned location of 1 exit from Cetus 14298 | -6/Factory | Loaded intel: 249 non-interactive machine locations 14311 | -6/Factory | Learned location of Upper Caves (-4) 14313 | -6/Factory | Learned 2 Extension zone layouts 14369 | -6/Factory | Learned Hub_04(d) stockpile data 14727 | -6/Factory | Fabricated Linear Gravjet (x2) 14846 | -6/Factory | Entered Lower Caves 14847 | -6/Lower Caves | Identified exit to Lower Caves 14848 | -6/Lower Caves | Attracted the attention of an 0b10 checkpoint 14850 | -6/Lower Caves | Learned 4 Factory zone layouts 15014 | -6/Lower Caves | Encountered a Warlord checkpoint 15158 | -6/Lower Caves | Build established: Tank 15303 | -6/Lower Caves | Entered another Lower Caves area 15304 | -6/Lower Caves | Identified exit to Zion 15337 | -6/Lower Caves | Discovered exit to Factory (range 6) 15617 | -6/Lower Caves | Encountered a Warlord checkpoint 15770 | -6/Lower Caves | Entered Zion 15783 | -6/Zion | System corruption cleaned by Quarantine Array 15795 | -6/Zion | Discovered new exit (range 11) 15846 | -6/Zion | Identified exit to Deep Caves 15901 | -6/Zion | Found CR-A16's Pointy Stick 15918 | -6/Zion | Found Prototype Energy Gun 15918 | -6/Zion | Identified Storm Laser 15954 | -6/Zion | Learned location of 1 exit from Factory 15975 | -6/Zion | Acquired unknown access codes intercepted by a Zionite 16098 | -6/Zion | Given the Hacking Drone Bay 16098 | -6/Zion | Found Prototype Device 16103 | -6/Zion | Identified Hacking Drone Bay 16184 | -6/Zion | Learned Factory emergency access door positions 16284 | -6/Zion | Given A8's code to call for help 16454 | -6/Zion | Turned away by Imprinter 16554 | -6/Zion | Warned about damaging Zion machinery 16605 | -6/Zion | Attacked by Zionites 16607 | -6/Zion | Destroyed Imprinter 16611 | -6/Zion | Extracted access codes from Imprinter's data core 16652 | -6/Zion | Opened final containment barrier to the Deep Caves 16660 | -6/Zion | Saw the warning signs outside the Deep Caves entrance 16661 | -6/Zion | Entered Deep Caves 16663 | -6/Deep Caves | Met 5H-AD0 16781 | -6/Deep Caves | Z-Facility disabled 16816 | -6/Deep Caves | Core integrity fell below 50% 16840 | -6/Deep Caves | Found Prototype Protection 16840 | -6/Deep Caves | Identified Zio. Heavy Carapace 16902 | -6/Deep Caves | Found Prototype Protection 16902 | -6/Deep Caves | Identified Zio. Weapon Casing 16909 | -6/Deep Caves | Found Zio. Heavy Carapace 16933 | -6/Deep Caves | Found Zio. Heavy Carapace 17149 | -6/Deep Caves | Discovered new exit (range 7) 17228 | -6/Deep Caves | Thanked by 5H-AD0 17296 | -6/Deep Caves | Spotted AG-27567 17328 | -6/Deep Caves | Entered Proximity Caves 17563 | -5/Proximity Caves | Discovered exit to Factory (range 6) 17575 | -5/Proximity Caves | Entered Factory 17575 | -5/Factory | Evolved 2 slots: Utility x2 17576 | -5/Factory | Identified exit to Upper Caves 17576 | -5/Factory | Identified exit to Extension 17577 | -5/Factory | Identified exit to Factory 17591 | -5/Factory | Loaded intel: 8 recycling unit locations 17675 | -5/Factory | Fabricated Antigrav System? 17678 | -5/Factory | Noticed UFD Elites at a Recycling Unit 17874 | -5/Factory | Build established: Hacker-Gunner 17909 | -5/Factory | Spotted B-75 Beast 18058 | -5/Factory | Destroyed 10 combat bots 18067 | -5/Factory | Lost 3 parts (1n2w) 18091 | -5/Factory | Repaired Broken Adv. Recoil Stabilizer 18148 | -5/Factory | Repaired Gravmag Array? 18215 | -5/Factory | Repaired Bore Cannon 18266 | -5/Factory | Repaired Lrn. Missile Launcher? 18492 | -5/Factory | Repaired Cmb. Airjet? 18554 | -5/Factory | Repaired Adv. Recoil Stabilizer 18752 | -5/Factory | Loaded intel: 6 fabricator locations 18816 | -5/Factory | Learned Armory emergency access door positions 18871 | -5/Factory | Learned Extension emergency access door positions 18916 | -5/Factory | Learned location of 2 exits from Factory 18947 | -5/Factory | Fabricated Weapon Mount (x2) 18952 | -5/Factory | Learned Research fabricator intel 19051 | -5/Factory | Learned 12 Research zone layouts 19075 | -5/Factory | First assault squad dispatched 19115 | -5/Factory | Learned location of 2 exits from Factory 19139 | -5/Factory | Discovered exit to Factory (range 16) 19215 | -5/Factory | High security lockdown imminent 19256 | -5/Factory | Manually triggered Chute Trap 19256 | -5/Factory | Sucked down chute 19256 | -5/Factory | Entered Waste 19257 | -5/Waste | Identified exit to Factory 19271 | -5/Waste | EMP discharged 19274 | -5/Waste | Spotted C-40 Crusher 19280 | -5/Waste | Spotted C-40 Crusher 19283 | -5/Waste | Lost 5 parts (1p2n1u1w) 19283 | -5/Waste | Spotted C-40 Crusher 19288 | -5/Waste | Spotted C-40 Crusher 19297 | -5/Waste | Spotted C-40 Crusher 19309 | -5/Waste | Entered Factory 19445 | -5/Factory | Discovered exit to Extension (range 10) 19525 | -5/Factory | Garrison activated, responded to threat 19586 | -5/Factory | Lost 3 parts (3w) 19742 | -5/Factory | Entered Extension 19778 | -5/Extension | Rescued A7 19785 | -5/Extension | Rescued a captive Derelict 19786 | -5/Extension | Rescued a captive Derelict 19791 | -5/Extension | Lost 4 parts (1u3w) 19972 | -5/Extension | Central database locked down 20042 | -5/Extension | First assault squad dispatched 20264 | -5/Extension | Spotted B-75 Beast 20282 | -5/Extension | Allies destroyed B-75 Beast 20292 | -5/Extension | Spotted B-75 Beast 20303 | -5/Extension | Destroyed B-75 Beast 20342 | -5/Extension | Disrupted transfer network 20366 | -5/Extension | Rescued a captive Derelict 20367 | -5/Extension | Rescued a captive Derelict 20539 | -5/Extension | Lost 6 allies 20569 | -5/Extension | Rescued a captive Derelict 20570 | -5/Extension | Rescued a captive Derelict 20588 | -5/Extension | Rescued a captive Derelict 20687 | -5/Extension | Discovered exit to Factory (range 10) 20688 | -5/Extension | Discovered new exit (range 6) 20716 | -5/Extension | Destroyed 9 combat bots 20732 | -5/Extension | Entered Cetus 20732 | -5/Cetus | Accompanied by 4 allies (A7) 20733 | -5/Cetus | Identified exit to Archives 20737 | -5/Cetus | Acquired a Cetus Manufacturing Module code from A7 20745 | -5/Cetus | Spotted Cetus Guard 20745 | -5/Cetus | Spotted Cetus Guard 20748 | -5/Cetus | Spotted Cetus Guard 20748 | -5/Cetus | Spotted Cetus Guard 20750 | -5/Cetus | Destroyed Cetus Guard 20754 | -5/Cetus | Allies destroyed Cetus Guard 20768 | -5/Cetus | Allies destroyed Cetus Guard 20772 | -5/Cetus | Destroyed Cetus Guard 20811 | -5/Cetus | Started Cetus Manufacturing Module 20814 | -5/Cetus | Enhanced Grunt warped into view, answering call for help 20815 | -5/Cetus | System corruption reached 10% 20817 | -5/Cetus | Enhanced Grunt warped into view, answering call for help 20821 | -5/Cetus | Escorted A7 to Cetus Mainframe 20836 | -5/Cetus | Manufactured an Enhanced Grunt 20861 | -5/Cetus | Manufactured an Enhanced Grunt 20886 | -5/Cetus | Manufactured an Enhanced Grunt 20911 | -5/Cetus | Manufactured an Enhanced Grunt 20932 | -5/Cetus | Spotted Cetus Guard 20933 | -5/Cetus | Spotted Cetus Guard 20936 | -5/Cetus | Manufactured an Enhanced Grunt 20937 | -5/Cetus | Spotted Cetus Guard 20940 | -5/Cetus | Destroyed Cetus Guard 20941 | -5/Cetus | Spotted Cetus Guard 20962 | -5/Cetus | Allies destroyed Cetus Guard 20963 | -5/Cetus | Allies destroyed Cetus Guard 20973 | -5/Cetus | Met Revision 17 21031 | -5/Cetus | Entered Archives 21031 | -5/Archives | Accompanied by 8 allies (A7) 21036 | -5/Archives | Received a hacking code to weaken MAIN.C 21086 | -5/Archives | Discovered exit to Factory (range 15) 21143 | -5/Archives | Discovered new exit (range 16) 21243 | -5/Archives | Discovered new exit (range 16) 21244 | -5/Archives | Build established: Scavenger-Gunner 21386 | -5/Archives | Entered Hub_04(d) 21386 | -5/Hub_04(d) | Accompanied by 6 allies 21390 | -5/Hub_04(d) | Discovered exit to Factory (range 13) 21622 | -5/Hub_04(d) | Discovered exit to Factory (range 4) 21623 | -5/Hub_04(d) | Garrison activated, responded to threat 21711 | -5/Hub_04(d) | Spotted B-75 Beast 21743 | -5/Hub_04(d) | Core integrity fell below 50% 21808 | -5/Hub_04(d) | Learned location of 1 exit from Research 21849 | -5/Hub_04(d) | Learned Testing terminal intel 21878 | -5/Hub_04(d) | Learned Armory non-interactive machine intel 21895 | -5/Hub_04(d) | Learned location of 3 exits from Factory 21904 | -5/Hub_04(d) | Allies destroyed B-75 Beast 21926 | -5/Hub_04(d) | Learned location of 1 exit from Armory 21950 | -5/Hub_04(d) | Identified exit to Garrison 21951 | -5/Hub_04(d) | Learned 8 Factory zone layouts 22013 | -5/Hub_04(d) | Network Hub disabled 22026 | -5/Hub_04(d) | Network Hub disabled 22049 | -5/Hub_04(d) | Spotted Lightning 22072 | -5/Hub_04(d) | Disrupted transfer network 22088 | -5/Hub_04(d) | Spotted Lightning 22088 | -5/Hub_04(d) | Spotted Lightning 22088 | -5/Hub_04(d) | Spotted Lightning 22096 | -5/Hub_04(d) | Lost 3 allies 22105 | -5/Hub_04(d) | Spotted Lightning 22105 | -5/Hub_04(d) | Spotted Lightning 22105 | -5/Hub_04(d) | Spotted Lightning 22111 | -5/Hub_04(d) | Entered Factory 22111 | -4/Factory | Evolved 2 slots: Power x1, Utility x1 22112 | -4/Factory | Identified exit to Research 22113 | -4/Factory | Identified exit to Upper Caves 22134 | -4/Factory | Lost 6 parts (1p3n1u1w) 22160 | -4/Factory | Repaired Adv. KE Penetrator 22189 | -4/Factory | Spotted B-86 Titan 22334 | -4/Factory | Loaded intel: 8 recycling unit locations 22347 | -4/Factory | Destroyed 10 combat bots 22376 | -4/Factory | Discovered exit to Research (range 8) 22487 | -4/Factory | Discovered exit to Research (range 16) 22514 | -4/Factory | Discovered new exit (range 11) 22553 | -4/Factory | Sucked down chute 22553 | -4/Factory | Entered Waste 22563 | -4/Waste | Found Broken Fusion Bomb Launcher 22568 | -4/Waste | EMP discharged 22568 | -4/Waste | System corruption reached 10% 22580 | -4/Waste | Lost 9 parts (1p3n1u4w) 22580 | -4/Waste | Spotted C-40 Crusher 22590 | -4/Waste | Spotted C-40 Crusher 22593 | -4/Waste | Spotted C-40 Crusher 22601 | -4/Waste | Crushed by Compactor (1 part destroyed, 1 dropped) 22613 | -4/Waste | Spotted C-40 Crusher 22614 | -4/Waste | Crushed by Compactor (1 part destroyed, 2 dropped) 22617 | -4/Waste | Crushed by Compactor (1 part destroyed, 1 dropped) 22618 | -4/Waste | Crushed by Compactor (1 part destroyed, 1 dropped) 22618 | -4/Waste | Crushed by Compactor (1 part destroyed, 2 dropped) 22622 | -4/Waste | Spotted C-40 Crusher 22623 | -4/Waste | Spotted C-40 Crusher 22627 | -4/Waste | Discovered new exit (range 16) 22634 | -4/Waste | Entered Factory 22649 | -4/Factory | Lost 6 parts (1p1n3u1w) 22746 | -4/Factory | Build established: Hacker-Mutant 22762 | -4/Factory | Fabricated Weapon Mount (x2) 22997 | -4/Factory | Fabricated Antigrav Array (x1) 23081 | -4/Factory | Fabricated Angular Momentum Engine (x2) 23350 | -4/Factory | Core integrity fell below 50% 23390 | -4/Factory | Lost 9 parts (1p3n2u3w) 23410 | -4/Factory | Core integrity fell below 20% 23426 | -4/Factory | Destroyed by S-27 Virus with Autogun Last Messages --------------- 23404_ Acquired Disruptor Cannon. 23409_ Penetrated by Slug. 23409_ Nuclear Reactor explodes. 23409_ S-27 Virus destroyed. 23412_ Nuclear Reactor explodes. 23417_ Slammed into P-70 Sage. 23417_ Construction Platform disabled. 23420_ Imp. Targeting Computer destroyed. 23424_ Connecting with Recycling Unit... >>Force(Scrapoids) UFD!MEMBER UFD!ALLOCATE<94-3=91> UFD!ETA<10> UFD!SANITIZING UFD!... 23424_ ALERT: Suspicious activity at Recycling Unit F002. Dispatching Investigation squad. 23424_ Slammed into S-27 Virus. 23425_ Disruptor Cannon destroyed. 23425_ Slammed into S-27 Virus. Map ----- +----------------------------------------------------+ | | | | | | | | | ?????????# ????#############????????????? | | ???????? #???# #????????????? | | ?????# """ ???# #????????????? | | ????## """ ##??# ! #????????????? | | ????# """ ??# #####????????? | | ???## #??# / #?######## | | ???# #??# ### #?# | | ???# #??# ### ### """ | | ???# #??#####+####### # """ | | ???# ######## ###### # """ | | ????# ] + | | ????# ######## ### # """ | | ????# #??????## #?# # """ | | ????#### ############ #?####### """ | | ???????### # # #???????# | | ?????????# # """""" ]# #???????# | | ?????????# # """"""" # #???????# | | ???????? # """"""" # #???????######## | | ???????### # """""""p Y ?????????? | | ?????????# # s # ##?????????##### | | ?????????# # """""""ss # #??????????????? | | ?????????# # """""""s@ # #??????????????? | | ?????????# # """"""" """# #??????????????? | | ?????????# +H""""""" Y"# ????????????????? | | ?????????# # """#????????????????????? | | ?????????# # = #????????????????????? | | ?????????# ##############????????????????????? | | ?????????? ??????????????????????????????????? | | ?????????????????????????????????????????????????? | | ?????????????????????????????????????????????????? | | ?????????????????????????????????????????????????? | | ?????????????????????????????????????????????????? | | ?????????????????????????????????????????????????? | | ?????????????????????????????????????????????????? | | ?????????????????????????????????????????????????? | | ?????????????????????????????????????????????????? | | ?????????????????????????????????????????????????? | | ?????????????????????????????????????????????????? | | ?????????????????????????????????????????????????? | | ?????????????????????????????????????????????????? | | ?????????????????????????????????????????????????? | | ?????????????????????????????????????????????????? | | ?????????????????????????????????????????????????? | | ?????????????????????????????????????????????????? | | ?????????????????????????????????????????????????? | | ?????????????????????????????????????????????????? | +----------------------------------------------------+ Best States ------------- Heat Dissipation 71 Energy Generation 33 Energy Capacity 390 Matter Stores 300 Matter Capacity 300 Sight Range 18 Robot Scan Range 16 Terrain Scan Range 16 Terrain Scan Density 10 Armor Coverage 1200 Utility Shielding 33 Weapon Shielding 66 Evasion (%) 62 Targeting Accuracy 32 Recoil Reduction 6 Offensive Hacking 38 Defensive Hacking 26 Authchip Count 1 Item Schematics ----------------- Hcp. Matter Pod | -9/Materials | Scanalyzed Bore Cannon | -6/Factory | Scanalyzed Gravity Neutralizer | -6/Factory | Scanalyzed Linear Gravjet | -6/Factory | Hacked Remote Shield | -6/Zion | Archive Tesla Rifle | -6/Zion | Archive Thermal Shield | -6/Zion | Archive Imp. Kinecellerator | -6/Zion | Archive Hvy. Machine Gun | -6/Zion | Archive Antigrav System | -6/Zion | Archive Fusion Compressor | -6/Zion | Archive Impulse Thruster | -6/Zion | Archive Matter Neutralizer | -6/Zion | Archive Force Field | -6/Zion | Archive Imp. Shock Absorption System | -6/Zion | Archive Disruptor Cannon | -6/Zion | Archive Angular Momentum Engine | -6/Zion | Archive Adv. Field Recycling Unit | -6/Zion | Archive Imp. Medium Treads | -6/Zion | Archive Adv. Recoil Stabilizer | -5/Factory | Scanalyzed Weapon Mount | -5/Factory | Hacked Adv. Weapon Cycler | -5/Factory | Hacked Antigrav Array | -5/Hub_04(d) | Hacked Cmb. Antigrav System | -4/Factory | Scanalyzed Fusion Bomb Launcher | -4/Factory | Scanalyzed Robot Schematics ------------------ H-66 Slayer | -6/Zion | Archive G-73 Enforcer | -6/Zion | Archive R-06 Scavenger | -6/Zion | Archive Fabricated ------------ Linear Gravjet | x2 | -6/Factory Antigrav System | x2 | -5/Factory | Preloaded Weapon Mount | x2 | -5/Factory Weapon Mount | x2 | -4/Factory Antigrav Array | x1 | -4/Factory Angular Momentum Engine | x2 | -4/Factory Repaired ---------- Hvy. Assault Rifle | 20% | -9/Materials Hvy. Assault Rifle | 37% | -9/Materials Hvy. Assault Rifle | 67% | -9/Materials Hvy. Assault Rifle | 71% | -9/Materials Imp. Ion Engine | 57% | -9/Materials Imp. Assault Rifle | 14% | -9/Storage Imp. Assault Rifle | 58% | -9/Storage Hvy. Assault Rifle | 66% | -9/Storage Imp. Assault Rifle | 90% | -9/Storage Hvy. Assault Rifle | 76% | -9/Storage Hvy. Assault Rifle | 80% | -9/Storage Gravmag Array | 63% | -6/Factory Gravmag Array | 49% | -6/Factory Adv. Recoil Stabilizer | 57% | -5/Factory | Broken Gravmag Array | 17% | -5/Factory Bore Cannon | 27% | -5/Factory Lrn. Missile Launcher | 1% | -5/Factory Cmb. Airjet | 35% | -5/Factory Adv. Recoil Stabilizer | 52% | -5/Factory Adv. KE Penetrator | 15% | -4/Factory Alien Tech Used ----------------- None Achievements -------------- None Challenges ------------ None Game ------ Seed HeartGodCoupler Manual? 0 Play Time 04:23:08 Cumulative 565.0 hours Start 2025.08.20 @ 22:46:29 End 2025.08.21 @ 18:01:11 Sessions 3 Manual Loads 0 Difficulty Rogue Special Mode None Game No. 294 Rogue 294 Adventurer 0 Explorer 0 Win Type - Total 6 Types 3/0/1/1/0/0/0/0/0/1 Lore% 86 Gallery% 77 Achievement% 68 Wizard Run 0 Options --------- Layout 2 ASCII 0 Keyboard 1 Movement Vi Keybinds 0 Fullscreen 1 Font 16/Tamsyn Map View 55x47 Zoom Use 0% Tactical HUD 1 Map Filters NONE Filters NONE Steam 0 RUN: bed6dc7b-5d1a-47c1-9c06-fbb6fdd5a6d9